Cogmind - Beta 13 @@@ ROGUE MODE // 2024.04.21 @ 17:52:50 Player: Occam Result: Destroyed by D-53 Grenadier with Mini Grenade Launcher Performance ------------- Evolutions (0) 0 Regions Visited (2) 400 Robots Destroyed (34) 170 Value Destroyed (574) 574 Prototype IDs (0) 0 Alien Tech Used (0) 0 Bonus (0) 0 TOTAL SCORE: 1144 Bonus ------- None Cogmind --------- Core Integrity 0/250 Matter 300/300 Energy 100/100 System Corruption 0% Temperature Cool (0) Movement Rolling (175) Ox5 Location -10/Mines Parts ------- > --- POWER (1) -------- (None) > --- PROPULSION (2) --- Compact Wheel > --- UTILITY (2) ------ Huge Storage Unit > --- WEAPON (2) ------- Heavy Assault Rifle > --- INVENTORY (25) --- Light Nuclear Core Light Treads Light Treads Light Treads Compact Wheel Cooling System Cooling System Large Storage Unit Structural Scanner Structural Scanner Signal Interpreter Light Armor Plating Hacking Suite Light EM Pulse Cannon Light EM Pulse Cannon Assault Rifle Assault Rifle Assault Rifle Assault Rifle Heavy Assault Rifle Heavy Assault Rifle Datajack Peak State ------------ > --- POWER ------------ Light Ion Engine > --- PROPULSION ------- Light Treads Compact Wheel > --- UTILITY ---------- Huge Storage Unit Structural Scanner > --- WEAPON ----------- Heavy Assault Rifle Heavy Assault Rifle > --- INVENTORY -------- Ion Engine Light Treads Light Treads Light Treads Compact Wheel Cooling System Cooling System Large Storage Unit Structural Scanner Signal Interpreter Light Armor Plating Light Armor Plating Light Armor Plating Hacking Suite Small Laser Small Laser Light EM Pulse Cannon Light EM Pulse Cannon Assault Rifle Light Assault Rifle Heavy Assault Rifle Heavy Assault Rifle Datajack [Rating: 12] Favorites ----------- Power Ion Engine Engine Ion Engine Propulsion Light Treads Treads Light Treads Leg Aluminum Leg Wheel Compact Wheel Utility Huge Storage Unit Device Structural Scanner Storage Huge Storage Unit Protection Light Armor Plating Weapon Heavy Assault Rifle Energy Gun Small Laser Ballistic Gun Heavy Assault Rifle Build | -11 -10 -10 ------- Run | Yrd Mat Min Slots Evolved . | . . . Power . | . . . Propulsion . | . . . Utility . | . . . Weapon . | . . . Parts Attached 21 | 2 16 3 Power 3 | . 2 1 Engine 3 | . 2 1 Core . | . . . Reactor . | . . . Propulsion 7 | . 6 1 Treads 4 | . 4 . Leg . | . . . Wheel 3 | . 2 1 Hover . | . . . Flight . | . . . Utility 7 | 1 5 1 Device 2 | 1 1 . Storage 3 | . 3 . Processor . | . . . Hackware . | . . . Protection 2 | . 1 1 Artifact . | . . . Weapon 4 | 1 3 . Energy Gun 1 | . 1 . Energy Cannon . | . . . Ballistic Gun 3 | 1 2 . Ballistic Cannon . | . . . Launcher . | . . . Special Weapon . | . . . Impact Weapon . | . . . Slashing Weapon . | . . . Piercing Weapon . | . . . Special Melee Weapon . | . . . Unidentified Prototypes . | . . . Parts Lost 7 | . 1 6 Power 1 | . . 1 Propulsion 2 | . . 2 Utility 2 | . . 2 Weapon 2 | . 1 1 Highest Loss Streak 5 | . 1 5 To Critical Strikes . | . . . Average Slot Usage (%) 99 | . 99 99 Engine 13 | . 14 13 Treads 16 | . 16 13 Leg 2 | . 3 . Wheel 8 | . 7 14 Device 5 | . 7 . Storage 14 | . 14 14 Protection 7 | . 6 13 Ballistic Gun 27 | . 26 28 Naked Turns . | . . . Heaviest Build 94 | 15 94 94 Greatest Support 40 | 20 40 32 Greatest Overweight (x) 5 | . 5 5 Average Overweight (x) 2 | . 2 4 Largest Inventory Capacity 25 | 8 25 25 Average Capacity 19 | 8 18 25 Most Carried 25 | 6 25 25 Average Carried 18 | 6 17 24 Final Capacity 25 | 8 25 25 Final Carried 25 | 6 25 22 Class Distribution -------------------- 100% | Mutant Dominant Class ---------------- Mutant | -10/Materials Mutant | -10/Mines Resources | -11 -10 -10 ----------- Run | Yrd Mat Min Matter Collected 963 | 280 560 123 Remotely . | . . . Salvage Created 1115 | 73 892 150 Parts 74 | 2 58 14 Haulers Intercepted 2 | . 2 . Recyclers Shooed 2 | . 2 . Parts Field Recycled . | . . . Retrieved Matter . | . . . Parts Self-Destructed . | . . . Prevented . | . . . Kills | -11 -10 -10 ------- Run | Yrd Mat Min Combat Hostiles Destroyed 19 | . 14 5 Guns 19 | . 14 5 Classes Destroyed 9 | 2 7 . Worker 1 | . 1 . Builder 1 | . 1 . Tunneler 2 | 1 . 1 Hauler 2 | . 2 . Recycler 5 | 1 4 . Operator 2 | . 2 . Watcher 2 | . 2 . Swarmer 9 | . 6 3 Grunt 10 | . 8 2 Best Kill Streak 5 | 1 5 3 Combat Bots Only 3 | . 3 3 Max Kills in Single Turn 2 | 1 2 1 Gunslinging 1 | . 1 . Exploded . | . . . Melee . | . . . Uniques/NPCs Destroyed . | . . . Combat | -11 -10 -10 -------- Run | Yrd Mat Min Hostile Shots Fired 134 | . 94 40 Missed 29 | . 23 6 Damage Taken 1371 | . 723 648 Core 258 | . 144 114 Absorbed by Shields . | . . . Regen/Repaired (Parts) 155 | . 155 . Core Remaining (%) 100 | 100 . . Volleys Fired 97 | 10 69 18 Largest 2 | 2 2 2 Hottest 60 | 40 60 46 Shots Fired 194 | 20 138 36 Gun 194 | 20 138 36 Cannon . | . . . Launcher . | . . . Special . | . . . Kinetic 191 | 20 135 36 Thermal 3 | . 3 . Explosive . | . . . Electromagnetic . | . . . Robot Hit Streak 15 | 4 15 4 Robot Miss Streak 6 | 3 6 3 Penetration Max . | . . . Secondary Targets 3 | . 3 . Max Gunslinging Chain 1 | . 1 . Shots Hit Robots 110 | 8 82 20 Core Hits 46 | 3 35 8 Critical Kills 1 | . 1 . Critical Parts Destroyed 1 | 1 . . Critical Strikes 2 | 1 1 . Destroy 2 | 1 1 . Melee Attacks . | . . . Impact . | . . . Slashing . | . . . Piercing . | . . . Sneak Attacks . | . . . Combat Hostiles . | . . . Follow-up Attacks . | . . . Damage Inflicted 1581 | 105 1156 320 Guns 1581 | 105 1156 320 Cannons . | . . . Explosions . | . . . Melee . | . . . Ramming . | . . . Kinetic 1581 | 105 1156 320 Thermal . | . . . Explosive . | . . . Electromagnetic . | . . . Impact . | . . . Slashing . | . . . Piercing . | . . . Highest Corruption . | . . . Average Corruption . | . . . Corruption Purged . | . . . Corruption Blocked . | . . . Overload Shots . | . . . Overflow Damage . | . . . Projectiles . | . . . Explosions . | . . . Melee . | . . . Knockbacks . | . . . Impact . | . . . Kinetic . | . . . Secondary . | . . . Self-Inflicted Damage . | . . . Shots . | . . . Rammed . | . . . Targets Rammed . | . . . Kicked . | . . . Crushed . | . . . Highest Temperature 14 | . 2 14 Average Temperature 5 | . 2 8 Received Heat Transfer 327 | . 264 63 Siege Activations . | . . . Robots Corrupted . | . . . Combat Hostiles . | . . . Parts Fried . | . . . Impact Corruptions . | . . . Robots Melted . | . . . Combat Hostiles . | . . . Parts Melted . | . . . Heat Transferred . | . . . Parts Sabotaged . | . . . Parts Stolen . | . . . Parts Stripped . | . . . Power Chain Reactions . | . . . Alert | -11 -10 -10 ------- Run | Yrd Mat Min Peak Influence 241 | 10 241 155 Initial 40 | . 6 40 Average 123 | 6 138 90 Maximum Alert Level 1 | . 1 . Low Security (%) 97 | 100 96 100 Level 1 2 | . 3 . Level 2 . | . . . Level 3 . | . . . Level 4 . | . . . Level 5 . | . . . High Security . | . . . Max Security . | . . . Squads Dispatched 2 | . 2 . Investigation . | . . . Extermination . | . . . Reinforcement 2 | . 2 . Assault . | . . . Garrison . | . . . Intercept . | . . . Searches Triggered . | . . . Construction Impeded . | . . . Haulers Reinforced . | . . . Active Scanning Responses . | . . . Cargo Convoy Interrupts . | . . . Stealth | -11 -10 -10 --------- Run | Yrd Mat Min Distress Signals 2 | . 2 . Communications Jammed . | . . . Distress Signals . | . . . Times Spotted 41 | . 28 13 Peak Tracking Total 13 | . 6 13 Tactical Retreats 2 | . 2 . Traps | -11 -10 -10 ------- Run | Yrd Mat Min Traps Triggered . | . . . Indirectly . | . . . Trap Hack Attempts . | . . . Triggered . | . . . Disarmed . | . . . Reprogrammed . | . . . Reused . | . . . Traps Extracted . | . . . Installed . | . . . Triggered . | . . . Machines | -11 -10 -10 ---------- Run | Yrd Mat Min Machines Disabled . | . . . Max in Single Turn . | . . . Machines Repaired . | . . . Machines Dismantled . | . . . Machines Sabotaged . | . . . Overloaded Fab Kills . | . . . Hacking | -11 -10 -10 --------- Run | Yrd Mat Min Machines Accessed 7 | . 7 . Terminals 6 | . 6 . Fabricators . | . . . Repair Stations 1 | . 1 . Recycling Units . | . . . Scanalyzers . | . . . Garrison Access . | . . . Total Hacks 27 | . 27 . Successful 17 | . 17 . Failed 10 | . 10 . Catastrophic 3 | . 3 . Database Lockouts . | . . . Manual 17 | . 17 . Terminals 17 | . 17 . Fabricators . | . . . Repair Stations 10 | . 10 . Recycling Units . | . . . Scanalyzers . | . . . Garrison Access . | . . . Terminal Hacks 7 | . 7 . Part Schematic 1 | . 1 . Robot Analysis 5 | . 5 . Terminal Index 1 | . 1 . Fabricator Hacks . | . . . Repair Station Hacks 8 | . 8 . Scan Component 4 | . 4 . Repair 4 | . 4 . Recycling Unit Hacks . | . . . Scanalyzer . | . . . Garrison Access Hacks . | . . . Unauthorized Hacks 2 | . 2 . Terminals 2 | . 2 . Botnet 2 | . 2 . Fabricators . | . . . Repair Stations . | . . . Recycling Units . | . . . Scanalyzers . | . . . Garrison Access . | . . . Data Cores Recovered . | . . . Used . | . . . Hacking Detections 6 | . 6 . Full Trace Events . | . . . Feedback Events . | . . . Feedback Blocked . | . . . Robot Schematics Acquired . | . . . Robots Built . | . . . Authchips . | . . . Time . | . . . Total Robot Build Rating . | . . . Part Schematics Acquired 1 | . 1 . Parts Built . | . . . Authchips . | . . . Time . | . . . Total Part Build Rating . | . . . Parts Repaired 4 | . 4 . Time 104 | . 104 . Parts Recycled . | . . . Recycled Matter . | . . . Retrieved Matter . | . . . Retrieved Components . | . . . Parts Scanalyzed . | . . . Part Schematics Acquired . | . . . Parts Damaged . | . . . Bothacking | -11 -10 -10 ------------ Run | Yrd Mat Min Used RIF Installer . | . . . Robots Hacked . | . . . Non-combat . | . . . Combat . | . . . Robot Hacks Applied . | . . . Relay Couplers Released . | . . . Fabnet Peak Effective % . | . . . Robots Rewired . | . . . Allies Hacked . | . . . Hacks Repelled . | . . . Allies | -11 -10 -10 -------- Run | Yrd Mat Min Total Allies . | . . . Largest Group . | . . . Highest-Rated Group . | . . . Highest-Rated Ally . | . . . Total Orders . | . . . Ally Attacks . | . . . Total Damage . | . . . Kills . | . . . Allies Corrupted . | . . . Allies Melted . | . . . Intel | -11 -10 -10 ------- Run | Yrd Mat Min Robot Analysis Total 5 | . 5 . Derelict Logs Recovered 2 | . . 2 Drone Launches . | . . . Drone Recoveries . | . . . Exploration | -11 -10 -10 ------------- Run | Yrd Mat Min Turns Passed 1802 | 72 1388 342 Spaces Moved 792 | 33 597 162 Core . | . . . Treads 204 | . 204 . Legs 124 | 33 91 . Wheels 464 | . 302 162 Hover . | . . . Flight . | . . . Fastest Speed 120 | 120 120 130 Average Speed 162 | 120 161 174 Slowest Speed 175 | 120 175 175 Overloaded Moves . | . . . Propulsion Burnouts . | . . . Robots Hopped . | . . . Cave-ins Triggered . | . . . Exploration Rate (%) 39 | 4 80 34 Regions Visited 2 Branch Regions 1 Pre-discovered Areas . | . . . Known Exits Taken . | . . . Unknown Exits Taken 2 | 1 1 . Scrap Searched . | . . . Spaces Dug . | . . . Terrain Destroyed . | . . . Melee . | . . . Projectile . | . . . AOE . | . . . Terrain Rammed . | . . . Walls Destroyed . | . . . Machines Disabled . | . . . Actions | -11 -10 -10 --------- Run | Yrd Mat Min Total 1115 | 44 884 187 Wait 163 | . 163 . Move 790 | 32 596 162 Hop . | . . . Pick Up 28 | . 27 1 Fast Attach 5 | 1 4 . Attach 7 | . 4 3 Detach 4 | . 3 1 Swap 9 | 1 8 . Drop 12 | . 10 2 Fire 97 | 10 69 18 Melee . | . . . Ram . | . . . Kick . | . . . Crush . | . . . Escape Stasis . | . . . Rewire . | . . . Trap . | . . . Miscellaneous . | . . . Route ------- -11/Scrapyard -10/Materials (discovered 4 exits: [*Mat x2] / [*Min x2]) -10/Mines (discovered 1 exit: [*Exi]) History --------- Turn | Location | Event 12 | -11/Scrapyard | Discovered new exit (range 3) 73 | -11/Scrapyard | Entered Materials 301 | -10/Materials | Build established: Mutant 321 | -10/Materials | Discovered new exit (range 11) 482 | -10/Materials | Discovered new exit (range 6) 617 | -10/Materials | Core integrity fell below 50% 850 | -10/Materials | Discovered new exit (range 16) 942 | -10/Materials | Repaired Structural Scanner 969 | -10/Materials | Repaired Assault Rifle 996 | -10/Materials | Repaired Lgt. Treads 1022 | -10/Materials | Repaired Lgt. Treads 1224 | -10/Materials | Discovered new exit (range 15) 1461 | -10/Materials | Entered Mines 1517 | -10/Mines | Deemed a non-threat by the Exiles lab entrance 1517 | -10/Mines | Discovered new exit (range 5) 1597 | -10/Mines | Learned Materials terminal intel 1649 | -10/Mines | Learned location of 1 exit from Materials 1776 | -10/Mines | Assembled infested the area 1790 | -10/Mines | Core integrity fell below 20% 1803 | -10/Mines | Destroyed by D-53 Grenadier with Mini Grenade Launcher Last Messages --------------- 01705_ Lgt. Armor Plating destroyed. 01711_ G-47 Trooper destroyed. 01719_ Acquired 54 matter. 01721_ Acquired 9 matter. 01725_ Dropped Ion Engine. 01726_ Dropped Lgt. Ion Engine. 01727_ Acquired Lgt. Nuclear Core. 01728_ Acquired 10 matter. 01776_ ALERT: Infestation in the mines, dispatching Demolisher response squad. 01790_ as-90735 destroyed. 01790_ as-60874 destroyed. 01790_ as-93163 destroyed. 01792_ Lgt. Armor Plating destroyed. 01794_ Lgt. Treads destroyed. 01796_ Ion Engine destroyed. 01800_ The unstable cave ceiling collapses. 01800_ Hvy. Assault Rifle destroyed. 01800_ Com. Wheel destroyed. 01801_ The unstable cave ceiling collapses. Map ----- +----------------------------------------------------+ | ?????????????????????????????? ???????????????? | | ?????????????????????????????? ???????????????? | | ?????????????????????????????? ???????????????? | | ??????????????????????????????# ???????????????? | | ??????????????????????????????# #???????????????? | | ??????????????????????????????# #???????????????? | | ????????????##????????????????# ????????????????? | | ???????????# ???????????????? ????????????????? | | ???????????#"""???????????????#%###?? ??????????? | | ???????????#"""???????????????#" ?? #?????????? | | ???????????#""" ??????????????# ##? #??????????? | | ???????????? ??????????#### ## ######?????? | | ?????????????? ?????##### % # ??? | | ???????????????# ###### # * ??? | | ???????????????# ###?????????? | | ???????????????# d= ######???????????? | | ???????????????######## d ##????????????????? | | ?????????????????????### #????????????????? | | ?????????????????????# ##????????????????? | | ?????????????????????# #????????????????? | | ?????????????????????# ##????????????????? | | ?????????????????????# #????????????????? | | ?????????????????????# ###???????????????? | | ?????????????????????# ##??????????????? | | ?????????????????????## #??????????????? | | ??????????????????????#* @[ r ##?????????????? | | ??????????????????????#! = ###########???? | | ???????????????????#### ## ### ??? | | ???????????????????#| % ## #?# ??? | | ???????????????????# ##### ### """" ####???? | | ???????????????????# #???# """" #??????? | | ???????????????????# ########### """" #?????? | | ???????????????????# #?????# ?????????? | | ?????????########### #### #??????# ???????? | | ?????????# #????????????# ??????? | | ?????????# ######### #????????????? ?????? | | ?????????# #??##### ##???????????? ?????? | | ?????????# #??# ##???????????? ##????? | | ??####???# #??# ####?????????## #?????? | | ?## ##?# #### ????????????# #?????? | | ?# ### ## #?????????????? ??????? | | ?# ##?????????????? ??????? | | ?# ##??????????????????????? | | ?## #??????????????????????? | | ??## #??????????????????????? | | ???#### ### #??????????????????????? | | ?##???### ##?## #??????????????????????? | | ?#<#### ###???? #??????????????????????? | | ?# ## ##### #??????# #?????????????????????? | | ???# #???# ##??????## #?????????????????????? | +----------------------------------------------------+ Best States ------------- Heat Dissipation 25 Energy Generation 10 Energy Capacity 250 Matter Stores 300 Matter Capacity 300 Sight Range 16 Terrain Scan Density 10 Armor Coverage 150 Evasion (%) 55 Recoil Reduction 2 Item Schematics ----------------- Huge Storage Unit | -10/Materials | Hacked Robot Schematics ------------------ None Fabricated ------------ Nothing Alien Tech Used ----------------- None Achievements -------------- None Challenges ------------ None Game ------ Seed PlatingAluminumRecalibrator Manual? 0 Play Time 00:19:34 Cumulative 241.3 hours Start 2024.04.21 @ 17:35:47 End 2024.04.21 @ 17:52:50 Sessions 1 Manual Loads 0 Difficulty Rogue Special Mode None Game No. 155 Rogue 11 Adventurer 144 Explorer 0 Win Type - Total 4 Types 2/0/1/1/0/0/0/0/0 Lore% 63 Gallery% 74 Achievement% 62 Wizard Run 0 Options --------- Layout 0 ASCII 0 Keyboard 0 Movement Mouse Keybinds 0 Fullscreen 2 Font 20/SmallcapsGlow Map View 66x50 Zoom Use 0% Tactical HUD 1 Map Filters NONE Filters NONE Steam X RUN: c0c9894e-3220-4a36-8b2f-da244127e611